bitfinex-derivatives/quotes_ETHF0:USTF0_20241105
["timestamp","ask_amount","ask_price","bid_price","bid_amount"]
[1730776526058,1.49356772,2414.5,2414.2,0.22355296]
[1730776526262,1.49356772,2414.5,2414.0,1.49356772]
[1730776526263,0.41445,2414.4,2414.0,1.90807772]
[1730776526559,0.5366,2414.3,2414.1,0.8202926]
[1730776526760,4.72007,2414.3,2414.0,1.49356772]
[1730776526955,0.5367,2414.2,2414.1,0.22348767]
[1730776527357,0.5367,2414.2,2414.0,1.90807772]
[1730776528060,0.5367,2414.2,2414.0,1.49356772]
[1730776528362,0.5367,2414.2,2414.1,1.71700404]
[1730776528552,0.5367,2414.2,2414.1,2.13150404]
[1730776528958,0.5367,2414.2,2414.1,1.71700404]
[1730776529865,0.95118,2414.2,2414.1,1.71700404]
[1730776530056,0.5367,2414.2,2414.1,1.71686705]
[1730776530256,0.5367,2414.2,2414.0,1.90806772]
[1730776531068,0.5367,2414.2,2413.9,3.7534]
[1730776531069,0.5367,2414.2,2414.1,2.13134298]
[1730776531257,0.5367,2414.2,2414.1,1.90806772]
[1730776531668,0.41443,2414.5,2414.2,0.41447]
[1730776531963,0.41445,2414.4,2414.3,0.5637]
[1730776532356,0.41443,2414.5,2414.3,0.97816]
[1730776532553,5.33602,2414.6,2414.3,1.90802772]
[1730776532769,5.33602,2414.6,2414.3,2.47172772]
[1730776532958,0.41443,2414.5,2414.3,2.47172772]
[1730776533160,4.9216,2414.6,2414.3,1.49356772]
[1730776533569,0.41444,2414.5,2414.3,1.49356772]
[1730776534567,1.7138,2414.6,2414.3,1.49356772]
[1730776534568,5.33602,2414.6,2414.3,1.49356772]
[1730776534956,4.9216,2414.6,2414.3,1.49356772]
[1730776535164,0.41443,2414.5,2414.3,1.49356772]
[1730776535360,5.33603,2414.6,2414.3,1.49356772]
[1730776535561,0.41443,2414.5,2414.3,1.49356772]
[1730776535761,4.9216,2414.6,2414.3,1.49356772]
[1730776535961,5.33602,2414.6,2414.3,1.49356772]
[1730776536477,4.9216,2414.6,2414.3,1.90802772]
[1730776536668,0.097,2414.9,2414.5,1.49356772]
[1730776536669,3.3048,2414.9,2414.5,1.49356772]
[1730776536977,4.8861,2414.9,2414.7,1.49356772]
[1730776537171,45.6861,2414.9,2414.8,1.49356772]
[1730776537361,45.6861,2414.9,2414.7,1.49356772]
[1730776537575,45.6861,2414.9,2414.7,1.90795772]
[1730776537774,45.6861,2414.9,2414.7,1.49356772]
[1730776537969,45.6861,2414.9,2414.7,1.90795772]
[1730776538169,45.6861,2414.9,2414.7,1.49356772]
[1730776538568,45.6861,2414.9,2414.8,1.49356772]
[1730776538772,4.8861,2414.9,2414.8,1.49356772]
[1730776540968,4.8861,2414.9,2414.7,1.49356772]
[1730776541465,4.8861,2414.9,2414.7,1.90795772]
[1730776541664,4.8861,2414.9,2414.8,1.49356772]
[1730776542270,5.30046,2414.9,2414.8,1.49356772]
[1730776542667,4.8861,2414.9,2414.8,1.49356772]
[1730776543280,1.6783,2414.9,2414.8,1.49356772]
[1730776545171,7.31266772,2414.9,2414.5,1.49356772]
[1730776545375,3.2078,2414.7,2414.6,0.41441]
[1730776545568,3.6222,2414.7,2414.5,1.49356772]
[1730776545871,3.2078,2414.7,2414.5,1.49356772]
[1730776546672,0.41439,2414.8,2414.5,1.49356772]
[1730776547869,1.6783,2414.9,2414.5,1.49356772]
[1730776548379,0.41439,2414.8,2414.5,1.49356772]
[1730776549068,3.62219,2414.8,2414.5,1.49356772]
[1730776550367,0.41439,2414.7,2414.5,1.49356772]
[1730776551286,3.62219,2414.8,2414.5,1.49356772]
[1730776551881,3.62218,2414.8,2414.5,1.49356772]
[1730776552281,3.2078,2414.8,2414.6,1.49356772]
[1730776552692,3.62218,2414.8,2414.6,1.49356772]
[1730776553398,3.2078,2414.8,2414.6,1.49356772]
[1730776553692,3.62218,2414.8,2414.6,1.49356772]
[1730776554792,3.2078,2414.8,2414.6,1.49356772]
[1730776555683,3.2078,2414.8,2414.6,1.90796772]
[1730776556293,3.2078,2414.8,2414.7,0.5752]
[1730776556895,3.2078,2414.8,2414.6,1.49356772]
[1730776557399,5.30046,2414.9,2414.6,1.49356772]
[1730776557592,5.30046,2414.9,2414.6,1.90797772]
[1730776558193,5.30046,2414.9,2414.6,1.49356772]
[1730776559890,2.09266,2414.9,2414.6,1.49356772]
[1730776560300,0.41438,2414.8,2414.6,1.49356772]
[1730776560493,5.63516772,2414.8,2414.3,1.49356772]
[1730776560705,3.6222,2414.7,2414.4,1.49356772]
[1730776561005,3.2078,2414.7,2414.6,1.49356772]
[1730776561391,3.2078,2414.7,2414.6,2.05386772]
[1730776561592,3.62219,2414.7,2414.6,1.49356772]
[1730776561793,3.2078,2414.7,2414.6,1.49356772]
[1730776562199,3.2078,2414.7,2414.6,2.46827772]
[1730776562401,3.2078,2414.7,2414.6,2.05386772]
[1730776563005,0.41438,2414.8,2414.6,2.05386772]
[1730776563206,5.30048,2414.9,2414.6,2.05386772]
[1730776563504,5.30046,2414.9,2414.6,2.46827772]
[1730776563702,5.30046,2414.9,2414.6,2.05386772]
[1730776564206,5.30046,2414.9,2414.6,2.59316772]
[1730776565402,4.8861,2414.9,2414.6,2.59316772]
[1730776565597,6.19553299,2415.2,2414.8,1.49356772]
[1730776565598,7.90976527,2415.2,2414.8,1.49356772]
[1730776565806,1.1193,2415.1,2414.9,1.49356772]
[1730776566110,1.1193,2415.1,2414.9,1.90792772]
[1730776566302,1.1193,2415.1,2414.9,1.49356772]
[1730776566831,1.53364,2415.1,2414.9,1.49356772]
[1730776567139,1.1193,2415.1,2414.9,1.49356772]
[1730776567326,1.53364,2415.1,2414.9,1.49356772]
[1730776567624,1.53364,2415.1,2414.2,2.76703061]
[1730776567625,7.74922772,2415.0,2414.2,0.64476504]
[1730776567822,0.41442,2414.6,2414.0,0.097]
[1730776568017,0.41442,2414.6,2414.3,0.5455]
[1730776568018,1.7246,2414.5,2414.3,0.5455]
[1730776568218,1.7246,2414.5,2414.4,0.22362733]
[1730776568419,1.7246,2414.5,2414.3,0.5455]
[1730776568617,5.34683,2414.5,2414.3,0.5455]
[1730776569219,1.49356772,2414.4,2413.9,1.49356772]
[1730776569423,4.9324,2414.5,2414.0,1.77591706]
[1730776569631,0.41446,2414.4,2414.1,1.77591706]
[1730776569930,0.41446,2414.4,2414.2,0.82067496]
[1730776570136,0.41446,2414.4,2414.3,0.22364865]
[1730776570623,5.34684,2414.5,2414.3,0.22364865]
[1730776570938,5.34684,2414.5,2414.1,0.5455]
[1730776571126,5.34684,2414.5,2414.2,0.82065509]
[1730776571330,4.43597387,2414.8,2414.4,1.49356772]
[1730776571526,4.43597387,2414.8,2414.5,1.20590056]
[1730776571527,0.5481,2414.7,2414.5,1.20590056]
[1730776571721,0.5481,2414.7,2414.5,0.5678]
[1730776571928,4.92317387,2414.8,2414.6,2.13164019]
[1730776572128,4.33897387,2414.8,2414.6,2.49416772]
[1730776572527,4.33897387,2414.8,2414.6,2.07976772]
[1730776572731,4.75335387,2414.8,2414.6,2.07976772]
[1730776572925,4.33897387,2414.8,2414.6,2.07976772]
[1730776575214,8.08914561,2414.9,2414.6,2.07976772]
[1730776575403,8.08914561,2414.9,2414.6,0.5862]
[1730776576008,4.88134561,2414.9,2414.6,3.82037475]
[1730776576213,4.88134561,2414.9,2414.7,1.23517095]
[1730776576520,4.88134561,2414.9,2414.8,0.63807843]
[1730776577016,4.88134561,2414.9,2414.8,5.37594186]
[1730776577223,4.88134561,2414.9,2414.8,7.78935475]
[1730776577515,4.88134561,2414.9,2414.8,8.3864131]
[1730776577714,4.88134561,2414.9,2414.8,11.81787874]
[1730776578012,3.98804561,2414.9,2414.8,11.81787874]
[1730776578222,4.33897387,2415.0,2414.9,0.41436]
[1730776578410,4.33897387,2415.0,2414.9,4.55516]
[1730776578609,4.33897387,2415.0,2414.9,5.09326]
[1730776579421,4.33897387,2415.0,2414.9,6.86890447]
[1730776580215,0.41433,2415.1,2414.9,6.86890447]
[1730776580417,0.41433,2415.1,2415.0,0.82055626]
[1730776581421,0.99653,2415.1,2415.0,0.82055626]
[1730776582222,0.99653,2415.1,2415.0,0.82013215]
[1730776583021,0.99653,2415.1,2415.0,1.23447215]
[1730776583618,0.99653,2415.1,2415.0,0.82013215]
[1730776583819,0.99653,2415.1,2415.0,1.23447215]
[1730776584220,0.99653,2415.1,2415.0,0.82013215]
[1730776584415,0.99653,2415.1,2415.0,0.22362613]
[1730776584609,0.41436,2414.9,2414.8,3.2078]
[1730776584812,0.41436,2414.9,2414.8,4.44195576]
[1730776585111,0.41436,2414.9,2414.8,4.02757576]
[1730776585819,0.5822,2415.1,2414.8,4.02757576]
[1730776586020,0.41436,2414.9,2414.8,3.2078]
[1730776586217,0.41436,2414.9,2414.8,0.2233901]
[1730776586420,3.2078,2415.0,2414.6,4.23008475]
[1730776586721,1.57649,2414.8,2414.7,0.22338379]
[1730776587723,1.57648,2414.8,2414.7,0.22338379]
[1730776588115,1.57648,2414.8,2414.7,0.82311267]
[1730776588316,1.1621,2414.8,2414.7,0.82311267]
[1730776588714,1.57648,2414.8,2414.7,0.22338379]
[1730776589222,1.1621,2414.8,2414.5,0.41443]
[1730776589420,1.1621,2414.8,2414.6,0.59971215]
[1730776589421,0.9733,2414.7,2414.6,0.59971215]
[1730776589721,0.97329,2414.7,2414.6,0.8232238]
[1730776589926,5.11489,2414.7,2414.6,0.22343573]
[1730776590523,5.11489,2414.7,2414.6,0.82323257]
[1730776591217,0.97329,2414.7,2414.6,0.82323257]
[1730776591622,5.11489,2414.7,2414.6,0.82323257]
[1730776591822,5.11489,2414.7,2414.3,0.41446]
[1730776591823,4.7005,2414.7,2414.3,0.41446]
[1730776592025,0.41444,2414.5,2414.3,0.41446]
[1730776592215,0.5867,2414.4,2414.3,0.41446]
[1730776592415,1.1599,2414.4,2414.3,0.41446]
[1730776592619,1.57435,2414.4,2414.1,3.23417475]
[1730776592829,0.41447,2414.3,2414.1,3.64866475]
[1730776593511,1.1599,2414.4,2414.1,3.64866475]
[1730776593512,1.57436,2414.4,2414.1,3.64866475]
[1730776593713,0.41447,2414.3,2414.1,3.64866475]
[1730776593916,1.57436,2414.4,2414.1,3.23417475]
[1730776594118,1.57436,2414.4,2414.2,0.41448]
[1730776594823,1.1599,2414.4,2414.2,0.41448]
[1730776595025,0.5526,2414.3,2414.2,0.41448]
[1730776595222,41.3526,2414.3,2414.2,0.41448]
[1730776596113,41.3526,2414.3,2413.9,6.44197475]
[1730776596318,41.3526,2414.3,2414.1,0.4145]
[1730776596629,0.5526,2414.3,2414.2,0.41448]
[1730776597020,1.1599,2414.4,2414.3,0.41446]
[1730776597715,1.1599,2414.4,2413.9,6.44197475]
[1730776597916,3.2078,2414.5,2414.1,3.23417475]
[1730776598220,0.097,2414.7,2414.5,0.41441]
[1730776598427,2.08658,2414.8,2414.3,3.23417475]
[1730776598725,0.4144,2414.7,2414.4,0.41444]
[1730776599630,0.41442,2414.6,2414.3,0.41445]
[1730776600624,1.6722,2414.8,2414.2,4.3134]
[1730776600928,1.6722,2414.8,2414.4,0.41444]
[1730776601125,1.6722,2414.8,2414.2,3.62227]
[1730776601126,5.91595,2414.8,2414.2,3.62227]
[1730776601320,0.41444,2414.5,2414.2,3.62227]
[1730776601519,5.91595,2414.8,2414.2,3.2078]
[1730776601520,1.644,2414.4,2414.2,3.2078]
[1730776601728,1.644,2414.4,2414.3,0.41446]
[1730776601930,1.644,2414.4,2414.2,0.41447]
[1730776603430,1.644,2414.4,2414.0,0.586]
[1730776603726,1.644,2414.4,2414.2,0.41447]
[1730776603929,1.644,2414.4,2414.0,0.586]
[1730776604132,1.644,2414.4,2414.3,0.41446]
[1730776604314,1.644,2414.4,2414.3,0.63729618]
[1730776605429,1.644,2414.4,2414.3,0.22283618]
[1730776607030,1.644,2414.4,2414.3,0.22280502]
[1730776609327,1.644,2414.4,2414.2,0.41447]
[1730776610930,1.644,2414.4,2414.3,0.5838]
[1730776611530,1.0938,2414.4,2414.3,0.5838]
[1730776612229,1.0938,2414.4,2414.3,0.99826]
[1730776612424,1.0938,2414.4,2414.3,1.22104158]
[1730776612619,1.0938,2414.4,2414.3,1.80714158]
[1730776613232,1.0938,2414.4,2414.3,1.58436]
[1730776613431,1.0938,2414.4,2414.3,1.807131]
[1730776614327,1.0938,2414.4,2414.3,1.58436]
[1730776614534,1.0938,2414.4,2414.3,1.80720202]
[1730776618832,1.0938,2414.4,2414.3,1.39274202]
[1730776619131,1.0938,2414.4,2414.3,1.58436]
[1730776619542,1.0938,2414.4,2414.3,1.1699]
[1730776620237,1.0938,2414.4,2414.3,1.58436]
[1730776620439,1.0938,2414.4,2414.3,1.80726416]
[1730776620938,1.0938,2414.4,2414.3,1.58436]
[1730776621330,1.0938,2414.4,2414.3,1.80727449]
[1730776621830,3.7549,2414.6,2414.3,1.39281449]
[1730776622141,3.2078,2414.6,2414.5,0.41443]
[1730776622442,3.2078,2414.6,2414.4,0.41444]
[1730776622641,1.1414,2414.5,2414.4,0.41444]
[1730776622939,1.1414,2414.5,2414.4,0.22287177]
[1730776623141,1.55583,2414.5,2414.3,0.5838]
[1730776623341,1.55583,2414.5,2414.3,0.99826]
[1730776623545,1.1414,2414.5,2414.3,0.99826]
[1730776623850,1.49269905,2414.4,2413.9,3.2078]
[1730776624044,0.4145,2414.1,2414.0,0.81847359]
[1730776624237,0.4145,2414.1,2413.5,4.52611109]
[1730776624238,0.41455,2413.8,2413.5,4.20219]
[1730776624543,1.00577,2413.7,2413.6,0.81861194]
[1730776624845,2.49846905,2413.7,2413.4,0.41461]
[1730776625034,0.5378,2413.6,2413.5,0.22304787]
[1730776625232,0.5378,2413.6,2413.4,0.41461]
[1730776625446,0.5793,2413.5,2413.4,0.41461]
[1730776625638,0.5793,2413.5,2413.4,0.63763337]
[1730776625842,0.5378,2413.6,2413.5,0.4146]
[1730776626042,0.5378,2413.6,2413.5,0.63762337]
[1730776627438,41.3912,2413.7,2413.6,0.41458]
[1730776628735,41.3912,2413.7,2413.3,1.1215]
[1730776628932,41.3912,2413.7,2413.4,1.23087066]
[1730776629241,41.3912,2413.7,2413.4,0.41462]
[1730776630039,3.3198,2414.4,2413.7,0.41457]
[1730776630242,0.5607,2414.2,2414.1,0.4145]
[1730776630543,3.2078,2414.4,2414.1,4.36527934]
[1730776630751,1.1284,2414.5,2414.0,0.41451]
[1730776631040,1.1284,2414.5,2414.3,0.41446]
[1730776631244,1.1284,2414.5,2414.1,0.22289857]
[1730776631539,1.1284,2414.5,2414.3,0.41445]
[1730776631945,1.1284,2414.5,2414.4,0.41445]
[1730776632245,1.1284,2414.5,2414.3,0.41446]
[1730776632432,1.54283,2414.5,2414.2,0.41447]
[1730776632636,1.54283,2414.5,2414.3,0.22297223]
[1730776632837,1.1284,2414.5,2414.3,0.41446]
[1730776633637,1.1284,2414.5,2414.0,0.5682]
[1730776633842,1.1284,2414.5,2414.2,3.2078]
[1730776634042,1.1284,2414.5,2414.4,0.41445]
[1730776634939,0.41445,2414.4,2414.1,0.41448]
[1730776635139,0.41445,2414.4,2414.2,1.23153441]
[1730776635338,0.41445,2414.4,2414.3,0.2231908]
[1730776636250,1.1284,2414.5,2414.3,0.2231908]
[1730776636251,1.54284,2414.5,2414.3,0.2231908]
[1730776636441,1.54284,2414.5,2414.3,0.41446]
[1730776636746,1.1284,2414.5,2414.0,4.341]
[1730776636948,1.54284,2414.5,2414.2,0.41447]
[1730776637141,1.54284,2414.5,2414.3,0.22324245]
[1730776637448,1.54284,2414.5,2414.2,0.41447]
[1730776637645,1.54284,2414.5,2414.3,0.22326197]
[1730776637848,1.54284,2414.5,2414.2,0.41447]
[1730776638039,1.54284,2414.5,2414.3,0.22326558]
[1730776638345,1.54284,2414.5,2414.2,0.41447]
[1730776638649,1.54284,2414.5,2414.3,0.22326781]
[1730776638868,1.54284,2414.5,2414.2,0.41447]
[1730776639038,1.54284,2414.5,2414.3,0.22325832]
[1730776639238,1.54284,2414.5,2414.2,0.41447]
[1730776639435,1.54284,2414.5,2414.3,0.22325749]
[1730776640453,1.1284,2414.5,2414.3,0.41446]
[1730776640640,1.1284,2414.5,2414.2,0.41447]
[1730776640641,1.54283,2414.5,2414.2,0.41447]
[1730776641551,1.54283,2414.5,2414.3,0.22325695]
[1730776641742,1.54283,2414.5,2414.2,0.41447]
[1730776641941,1.54283,2414.5,2414.3,0.22325837]
[1730776642251,1.1284,2414.5,2414.3,0.41446]
[1730776642644,1.1284,2414.5,2414.0,3.7458]
[1730776642842,1.1284,2414.5,2414.2,0.41447]
[1730776643145,1.1284,2414.5,2414.3,0.63772311]
[1730776643343,1.1284,2414.5,2414.3,0.41446]
[1730776643555,1.1284,2414.5,2414.0,3.7458]
[1730776643852,1.54283,2414.5,2414.2,0.41447]
[1730776644155,1.54283,2414.5,2414.3,0.22325076]
[1730776644341,1.54283,2414.5,2414.2,0.41447]
[1730776644542,1.1284,2414.5,2414.3,0.63771879]
[1730776644743,1.1284,2414.5,2414.3,0.41446]
[1730776648455,3.7873,2414.6,2414.1,1.03625]
[1730776648753,3.7873,2414.6,2414.5,0.41443]
[1730776648959,0.5795,2414.6,2414.5,0.63769034]
[1730776649548,0.899,2414.8,2414.7,0.41439]
[1730776649549,0.4293,2414.8,2414.7,0.41439]
[1730776650451,0.8921,2415.0,2414.8,0.41436]
[1730776650648,0.8921,2415.0,2414.6,0.4266]
[1730776650649,1.3408,2415.0,2414.6,0.4266]
[1730776650949,1.3408,2415.0,2414.7,0.41439]
[1730776651256,1.3408,2415.0,2414.8,0.41437]
[1730776652347,1.3408,2415.0,2414.6,0.841]
[1730776652549,1.3408,2415.0,2414.6,0.4266]
[1730776652752,1.75515,2415.0,2414.7,0.41439]
[1730776654363,1.3408,2415.0,2414.8,0.41437]
[1730776654656,1.75514,2415.0,2414.7,0.41438]
[1730776655451,3.24754785,2415.0,2414.7,0.41438]
[1730776657350,2.83320785,2415.0,2414.7,0.41438]
[1730776657558,2.83320785,2415.0,2414.8,0.41437]
[1730776658148,2.83320785,2415.0,2414.7,0.41438]
[1730776658465,3.24755785,2415.0,2414.7,0.41438]
[1730776659655,2.83320785,2415.0,2414.6,0.4266]
[1730776659957,3.2078,2414.8,2414.3,0.4395]
[1730776660256,1.90677785,2414.9,2414.6,0.41441]
[1730776660463,1.90677785,2414.9,2414.3,0.41445]
[1730776660464,1.49240785,2414.7,2414.3,0.41445]
[1730776660761,1.49240785,2414.5,2414.3,0.41445]
[1730776660962,1.49240785,2414.5,2414.1,3.2078]
[1730776661165,1.90683785,2414.5,2414.2,0.6375478]
[1730776661459,1.49240785,2414.3,2414.0,0.4354]
[1730776661760,2.82400785,2414.2,2413.8,3.62233]
[1730776661953,1.49240785,2414.0,2413.9,0.22314063]
[1730776662265,0.41457,2413.7,2413.4,3.2078]
[1730776662458,1.94260785,2413.6,2413.5,0.8139448]
[1730776662660,2.82400785,2413.6,2413.5,0.22314584]
[1730776663055,2.82400785,2413.6,2413.2,0.84144]
[1730776663056,3.23858785,2413.6,2413.2,0.84144]
[1730776663254,3.23858785,2413.6,2413.3,0.22309331]
[1730776663255,1.74618,2413.6,2413.3,0.22309331]
[1730776663550,1.3316,2413.6,2413.3,0.41463]
[1730776663756,1.3316,2413.6,2413.4,0.2230942]
[1730776663956,1.3316,2413.6,2413.3,0.41463]
[1730776664170,1.3316,2413.6,2413.1,0.4401]
[1730776664354,0.4146,2413.5,2413.2,0.63768278]
[1730776664559,3.23538972,2413.4,2412.7,0.4292]
[1730776664758,3.2078,2413.2,2412.9,0.4147]
[1730776665255,3.2078,2413.2,2412.9,0.41469]
[1730776666466,3.62245,2413.2,2412.8,0.41471]
[1730776666767,0.9107,2413.1,2412.8,0.41471]
[1730776667559,0.9107,2413.1,2412.6,3.668]
[1730776667760,1.362,2413.1,2412.7,0.41473]
[1730776669266,1.77667,2413.1,2412.7,0.41474]
[1730776670068,1.362,2413.1,2412.3,3.2078]
[1730776670272,1.362,2413.1,2412.4,0.41479]
[1730776670273,0.41473,2412.8,2412.4,0.41479]
[1730776670467,0.41472,2412.8,2412.4,0.41479]
[1730776670664,40.8,2412.7,2412.3,3.2078]
[1730776670968,3.2078,2412.9,2412.7,0.41473]
[1730776671163,1.362,2413.1,2412.3,6.44318972]
[1730776671373,42.57668,2413.1,2412.6,0.41474]
[1730776671566,1.77668,2413.1,2412.6,0.41474]
[1730776672265,41.21469,2413.0,2412.6,0.41474]
[1730776672765,0.41469,2413.0,2412.6,0.41474]
[1730776673071,0.41471,2412.9,2412.4,3.2078]
[1730776673465,45.3698,2413.1,2412.4,3.2078]
[1730776673671,45.3698,2413.1,2412.5,0.41477]
[1730776673869,45.3698,2413.1,2412.1,3.33238972]
[1730776673870,3.2078,2412.6,2412.1,0.097]
[1730776674073,0.4148,2412.4,2412.0,0.41485]
[1730776674366,1.3817,2412.5,2411.8,3.2078]
[1730776674674,0.41481,2412.3,2411.9,0.41487]
[1730776674966,0.4148,2412.4,2411.9,0.41488]
[1730776675175,0.4148,2412.4,2412.0,0.41484]
[1730776675370,1.79649,2412.5,2412.1,0.41484]
[1730776675676,0.41479,2412.4,2412.0,0.41485]
[1730776675875,0.41479,2412.4,2411.8,3.2078]
[1730776675876,1.3817,2412.5,2411.9,3.23538972]
[1730776676069,1.3817,2412.5,2412.2,0.41481]
[1730776676975,4.5895,2412.5,2412.2,0.41481]
[1730776677769,4.1312,2412.5,2411.9,1.0372]
[1730776677976,4.1312,2412.5,2411.9,4.27258972]
[1730776678171,4.1312,2412.5,2412.3,0.41479]
[1730776678475,4.1312,2412.5,2412.4,0.41479]
[1730776678781,4.1312,2412.5,2412.0,0.4231]
[1730776678971,4.1312,2412.5,2412.1,0.4394]
[1730776679172,4.1312,2412.5,2412.2,0.41481]
[1730776679372,4.1312,2412.5,2412.1,0.4394]
[1730776679571,4.1312,2412.5,2412.3,0.41479]
[1730776680473,4.1312,2412.5,2412.1,0.4394]
[1730776680679,4.1312,2412.5,2412.2,0.41482]
[1730776681478,4.1312,2412.5,2411.8,3.2078]
[1730776681479,3.23538972,2412.4,2411.8,3.2078]
[1730776681677,0.4393,2412.3,2412.2,0.41482]
[1730776681871,4.1312,2412.5,2412.2,0.41482]
[1730776682073,4.1312,2412.5,2412.2,0.41481]
[1730776682273,4.1312,2412.5,2411.8,3.6364]
[1730776682475,4.1312,2412.5,2412.2,0.41481]
[1730776682781,4.54597,2412.5,2411.8,4.67361]
[1730776683083,4.54597,2412.5,2412.3,0.4148]
[1730776683481,0.9234,2412.5,2412.3,0.4148]
[1730776687181,0.9234,2412.5,2412.2,0.41481]
[1730776687483,0.9234,2412.5,2412.0,0.4664]
[1730776687484,0.9234,2412.5,2412.3,0.4148]
[1730776687687,0.9234,2412.5,2412.1,0.41484]
[1730776687982,0.9234,2412.5,2412.3,0.41479]
[1730776688584,0.9234,2412.5,2412.0,0.4664]
[1730776688785,0.9234,2412.5,2412.3,0.4148]
[1730776690082,0.9234,2412.5,2412.4,0.41479]
[1730776690784,0.9234,2412.5,2412.3,0.4148]
[1730776691592,0.9234,2412.5,2412.1,0.4444]
[1730776691775,3.6471,2412.7,2412.6,0.41476]
[1730776693487,3.6471,2412.7,2412.6,4.55956]
[1730776693488,3.2078,2412.7,2412.6,4.55956]
[1730776694688,3.2078,2412.7,2412.6,5.02096]
[1730776695286,3.2078,2412.7,2412.6,0.87616]
[1730776695692,3.2078,2412.7,2412.6,5.02096]
[1730776695998,3.2078,2412.7,2412.6,0.41476]
[1730776696593,3.2078,2412.7,2412.6,4.55956]
[1730776698901,3.2078,2412.9,2412.6,4.1448]
[1730776699101,3.2078,2412.9,2412.8,0.41472]
[1730776699808,3.6225,2412.9,2412.8,0.41472]
[1730776700008,3.2078,2412.9,2412.8,0.41472]
[1730776700502,1.72277,2413.1,2413.0,0.41469]
[1730776701099,1.3081,2413.1,2413.0,0.41469]
[1730776702607,6.54018972,2413.4,2412.8,1.49019]
[1730776702802,0.438,2413.2,2413.1,0.41466]
[1730776704199,0.438,2413.2,2412.8,0.4534]
[1730776704399,3.23538972,2413.1,2412.6,3.2078]
[1730776704601,3.23538972,2412.9,2412.6,3.2078]
[1730776704807,0.41474,2412.7,2412.6,3.2078]
[1730776705111,0.41474,2412.7,2412.2,0.41481]
[1730776705112,0.41478,2412.5,2412.2,0.41481]
[1730776705297,0.41478,2412.5,2412.3,0.58738855]
[1730776705502,0.4555,2412.4,2412.0,0.4352]
[1730776705715,0.84331,2412.3,2412.1,0.5874364]
[1730776706009,0.84332,2412.3,2412.0,0.41485]
[1730776706206,0.84332,2412.3,2412.1,1.75159575]
[1730776706511,0.84332,2412.3,2412.2,0.58796671]
[1730776706906,0.84331,2412.3,2412.0,0.41484]
[1730776707214,0.4285,2412.3,2412.1,0.41483]
[1730776707411,0.4285,2412.3,2412.2,1.53004561]
[1730776707707,0.84331,2412.3,2412.2,1.75312515]
[1730776707906,4.98891,2412.3,2412.2,0.58847908]
[1730776708110,4.98891,2412.3,2411.9,0.41487]
[1730776708111,0.41484,2412.2,2411.9,0.41487]
[1730776708404,0.41484,2412.2,2412.0,1.75422823]
[1730776708405,0.86135,2412.1,2412.0,1.75422823]
[1730776708801,0.4465,2412.1,2412.0,1.75422823]
[1730776709002,0.4465,2412.1,2412.0,2.16908823]
[1730776710512,0.4465,2412.1,2412.0,0.41486]
[1730776710704,0.4465,2412.1,2412.0,3.50966717]
[1730776711011,11.45012972,2412.1,2412.0,3.50966717]
[1730776711207,11.45012972,2412.1,2412.0,2.5672344]
[1730776711910,11.45012972,2412.1,2412.0,0.81230996]
[1730776712314,11.45012972,2412.1,2412.0,0.58902048]
[1730776713108,11.03528972,2412.1,2411.6,0.41491]
[1730776713411,11.03528972,2412.1,2411.7,0.58894789]
[1730776713412,3.23538972,2411.9,2411.7,0.58894789]
[1730776713607,0.4445,2411.8,2411.5,0.41494]
[1730776713815,1.32689,2411.8,2411.6,0.81202901]
[1730776714108,1.32689,2411.8,2411.1,1.60390629]
[1730776714109,3.2078,2411.7,2411.1,0.5219]
[1730776714419,3.67088972,2411.6,2411.3,0.41497]
[1730776714617,3.67088972,2411.6,2411.4,0.81205059]
[1730776714808,4.08581972,2411.6,2411.2,0.41498]
[1730776715004,4.08581972,2411.6,2411.3,1.75368514]
[1730776715206,3.67088972,2411.6,2411.4,0.81180747]
[1730776715407,0.41494,2411.5,2411.2,0.415]
[1730776715708,4.08582972,2411.6,2411.2,0.415]
[1730776716609,40.8,2411.5,2411.2,0.415]
[1730776717408,41.21495,2411.5,2411.2,0.415]
[1730776718316,0.41503,2411.0,2410.9,0.0008]
[1730776718512,3.23538972,2411.1,2410.9,0.0008]
[1730776718712,0.4478,2411.0,2410.9,0.0008]
[1730776719418,0.86283,2411.0,2410.9,0.0008]
[1730776719603,8.21863,2411.0,2410.9,0.0008]
[1730776719805,3.65047972,2410.7,2410.4,4.51353]
[1730776720006,3.23538972,2410.7,2410.4,3.2078]
[1730776720207,3.23538972,2410.5,2410.0,0.4348]
[1730776720504,3.23538972,2410.5,2410.3,0.41514]
[1730776720707,0.4491,2410.6,2410.0,0.4348]
[1730776720903,0.4491,2410.6,2410.5,0.41512]
[1730776721109,3.23538972,2410.8,2410.6,0.41509]
[1730776721315,0.41509,2410.7,2410.4,0.41512]
[1730776721713,3.68448972,2410.8,2410.3,0.41514]
[1730776721907,0.41512,2410.5,2410.3,0.41514]
[1730776722109,0.4278,2410.4,2410.2,3.2078]
[1730776722520,0.4278,2410.4,2410.3,0.41515]
[1730776736135,3.33238972,2411.0,2410.3,4.1488]
[1730776736327,3.33238972,2411.0,2410.8,0.41506]
[1730776736328,3.75618972,2411.0,2410.8,0.41506]
[1730776736524,3.65918972,2411.0,2410.8,0.41506]
[1730776737024,3.65918972,2411.0,2410.9,0.41505]
[1730776741234,0.443,2411.1,2410.6,4.24552]
[1730776741537,3.23538972,2411.2,2411.1,0.41501]
[1730776742637,3.23538972,2411.2,2411.0,0.88012]
[1730776742831,3.23538972,2411.2,2411.0,0.4651]
[1730776743139,3.23538972,2411.2,2411.1,0.41501]
[1730776745233,7.38258972,2411.2,2410.3,0.097]
[1730776745539,3.23538972,2410.8,2410.5,0.41512]
[1730776745737,0.9007,2410.7,2410.4,0.4247]
[1730776745934,0.9007,2410.7,2410.6,0.4151]
[1730776746332,4.10535972,2410.8,2410.4,0.4247]